fUSD/lending_fUSD_20260522
["ID","MTS","AMOUNT","RATE_DAILY","PERIOD"]
[422791607,1779402639000,-500.0,0.00013699,2]
[422791610,1779402639000,-500.0,0.00013699,2]
[422791595,1779402639000,-500.0,0.00013699,2]
[422791611,1779402639000,-500.0,0.00013699,2]
[422791599,1779402639000,-500.0,0.00013699,2]
[422791597,1779402639000,-500.0,0.00013699,2]
[422791601,1779402639000,-500.0,0.00013699,2]
[422791605,1779402639000,-500.0,0.00013699,2]
[422791612,1779402639000,-450.0,0.00013699,2]
[422791613,1779402639000,-500.0,0.00013699,2]
[422791614,1779402639000,-500.0,0.00013699,2]
[422791616,1779402639000,-500.0,0.00013699,2]
[422791618,1779402639000,-500.0,0.00013699,2]
[422791615,1779402639000,-199.68624318,0.00013699,2]
[422791617,1779402639000,-500.0,0.00013699,2]
[422791619,1779402639000,-500.0,0.00013699,2]
[422791621,1779402639000,-640.52338063,0.00013699,2]
[422791620,1779402639000,-500.0,0.00013699,2]
[422791623,1779402639000,-486.56492906,0.00013699,2]
[422791622,1779402639000,-500.0,0.00013699,2]
[422791625,1779402639000,-500.0,0.00013699,2]
[422791661,1779402639000,-150.0,0.00013704,5]
[422791660,1779402639000,-150.0,0.00013704,5]
[422791655,1779402639000,-500.0,0.00013704,5]
[422791701,1779402639000,-7569.4347496,0.00014178,2]
[422791694,1779402639000,-7569.4347496,0.00014033,2]
[422791692,1779402639000,-1285.35455044,0.00013997,2]
[422791698,1779402639000,-736.0,0.00014123,2]
[422791696,1779402639000,-150.0,0.0001405,2]
[422791697,1779402639000,-160.0,0.00014058,2]
[422791690,1779402639000,-2624.32522218,0.00013971,2]
[422791693,1779402639000,-250.0,0.00014,2]
[422791700,1779402639000,-150.0,0.00014133,2]
[422791695,1779402639000,-373.98997317,0.00014033,2]
[422791702,1779402639000,-561.08,0.00014181,2]
[422791703,1779402639000,-823.0,0.0001421,2]
[422791705,1779402639000,-373.98997317,0.0001425,2]
[422791691,1779402639000,-4549.86868564,0.0001399,2]
[422791706,1779402639000,-2000.0,0.000143,5]
[422791707,1779402639000,-7569.4347496,0.00014322,2]
[422791708,1779402639000,-1058.02,0.0001436,2]
[422791709,1779402639000,-150.0,0.00014381,2]
[422791714,1779402639000,-7569.4347496,0.00014467,2]
[422791710,1779402639000,-150.0,0.00014381,2]
[422791712,1779402639000,-2600.0,0.000144,5]
[422791713,1779402639000,-1285.35455044,0.00014449,2]
[422791716,1779402639000,-174.074182,0.00014499,2]
[422791715,1779402639000,-373.98997317,0.00014467,2]
[422791718,1779402639000,-561.08,0.00014527,2]
[422791717,1779402639000,-500.0,0.000145,5]
[422791720,1779402639000,-500.0,0.000146,5]
[422791657,1779402639000,-500.0,0.00013704,5]
[422791704,1779402639000,-150.0,0.00014216,2]
[422791688,1779402639000,-1500.0,0.000139,5]
[422791711,1779402639000,-151.1694334,0.00014383,2]
[422791685,1779402639000,-150.0,0.00013885,2]
[422791654,1779402639000,-500.0,0.00013704,5]
[422791689,1779402639000,-166.69,0.00013966,2]
[422791659,1779402639000,-338.38473552,0.00013704,5]
[422791719,1779402639000,-150.0,0.00014546,2]
[422791662,1779402639000,-227.91888578,0.00013704,5]
[422791663,1779402639000,-150.0,0.0001372,2]
[422791664,1779402639000,-7569.4347496,0.00013744,2]
[422791667,1779402639000,-500.0,0.00013785,2]
[422791666,1779402639000,-204.69481167,0.00013785,2]
[422791670,1779402639000,-271.83630275,0.00013785,2]
[422791668,1779402639000,-500.0,0.00013785,2]
[422791673,1779402639000,-500.0,0.00013785,2]
[422791671,1779402639000,-371.34813457,0.00013785,2]
[422791669,1779402639000,-167.69940053,0.00013785,2]
[422791665,1779402639000,-500.0,0.00013785,2]
[422791676,1779402639000,-182.2181557,0.00013785,2]
[422791672,1779402639000,-500.0,0.00013785,2]
[422791687,1779402639000,-215.23956962,0.00013899,2]
[422791681,1779402639000,-373.98997317,0.00013817,2]
[422791680,1779402639000,-1000.0,0.000138,5]
[422791686,1779402639000,-7569.4347496,0.00013889,2]
[422791684,1779402639000,-150.0,0.00013885,2]
[422791683,1779402639000,-561.08,0.00013835,2]
[422791679,1779402639000,-2500.0,0.000138,2]
[422791678,1779402639000,-2000.0,0.000138,2]
[422791677,1779402639000,-2624.32522218,0.00013786,2]
[422791675,1779402639000,-500.0,0.00013785,2]
[422791674,1779402639000,-500.0,0.00013785,2]
[422791682,1779402639000,-233.12534026,0.0001382,2]
[422791748,1779402640000,-481.58157,0.0001475,2]
[422791749,1779402640000,-481.58157,0.0001475,2]
[422791752,1779402640000,-151.0,0.0001475,2]
[422791747,1779402640000,-25000.0,0.00014742,3]
[422791750,1779402640000,-481.58157,0.0001475,2]
[422791751,1779402640000,-481.58157,0.0001475,2]
[422791754,1779402640000,-290.77647,0.0001475,2]
[422791753,1779402640000,-290.77647,0.0001475,2]
[422791757,1779402640000,-25000.0,0.0001475,3]
[422791755,1779402640000,-290.77647,0.0001475,2]
[422791766,1779402640000,-25000.0,0.00014777,3]
[422791762,1779402640000,-353.914024,0.00014768,2]
[422791760,1779402640000,-25000.0,0.00014759,3]
[422791758,1779402640000,-7569.4347496,0.00014756,2]
[422791763,1779402640000,-353.914024,0.00014768,2]
[422791759,1779402640000,-151.0,0.00014759,2]
[422791743,1779402640000,-150.0,0.00014711,2]
[422791761,1779402640000,-25000.0,0.00014768,3]
[422791756,1779402640000,-290.77647,0.0001475,2]
[422791744,1779402640000,-25000.0,0.00014715,3]
[422791728,1779402640000,-17032.63187368,0.00014654,3]
[422791746,1779402640000,-25000.0,0.00014733,3]
[422791764,1779402640000,-353.914024,0.00014768,2]
[422791724,1779402640000,-25000.0,0.00014627,3]
[422791721,1779402640000,-25000.0,0.0001461,3]
[422791722,1779402640000,-7569.4347496,0.00014611,2]
[422791723,1779402640000,-25000.0,0.00014618,3]
[422791725,1779402640000,-24004.96745555,0.00014636,3]
[422791726,1779402640000,-995.03254445,0.00014636,3]
[422791727,1779402640000,-25000.0,0.00014645,3]
[422791734,1779402640000,-25000.0,0.00014662,3]
[422791732,1779402640000,-2624.32522218,0.00014157,2]
[422791736,1779402640000,-25000.0,0.0001468,3]
[422791739,1779402640000,-25000.0,0.00014698,3]
[422791733,1779402640000,-7967.36812632,0.00014654,3]
[422791738,1779402640000,-25000.0,0.00014689,3]
[422791735,1779402640000,-25000.0,0.00014671,3]
[422791737,1779402640000,-373.98997317,0.00014683,2]
[422791740,1779402640000,-511.67893727,0.000147,2]
[422791741,1779402640000,-500.0,0.000147,5]
[422791742,1779402640000,-25000.0,0.00014706,3]
[422791745,1779402640000,-25000.0,0.00014724,3]
[422791765,1779402640000,-353.914024,0.00014768,2]
[422791784,1779402640000,-1067.90124,0.0001486,2]
[422791767,1779402640000,-151.0,0.00014777,2]
[422791793,1779402640000,-170.41262241,0.00014877,2]
[422791794,1779402640000,-200.0,0.00014879,2]
[422791807,1779402640000,-860.0,0.000149,5]
[422791803,1779402640000,-880.0,0.000149,5]
[422791796,1779402640000,-25000.0,0.00014882,3]
[422791801,1779402640000,-1082.0,0.000149,5]
[422791795,1779402640000,-200.0,0.0001488,2]
[422791798,1779402640000,-300.0,0.00014899,2]
[422791789,1779402640000,-254.67783396,0.00014877,2]
[422791800,1779402640000,-25000.0,0.000149,3]
[422791768,1779402640000,-151.0,0.00014777,2]
[422791805,1779402640000,-1285.35455044,0.000149,2]
[422791811,1779402640000,-881.70017226,0.000149,2]
[422791809,1779402640000,-191.21706452,0.000149,2]
[422791814,1779402640000,-7569.4347496,0.000149,2]
[422791813,1779402640000,-23301.84851191,0.000149,2]
[422791816,1779402640000,-373.98997317,0.000149,2]
[422791819,1779402640000,-8351.24347304,0.000149,2]
[422791797,1779402640000,-25000.0,0.00014891,3]
[422791782,1779402640000,-1067.90124,0.0001485,2]
[422791799,1779402640000,-670.58560358,0.00014899,2]
[422791792,1779402640000,-231.15600798,0.00014877,2]
[422791788,1779402640000,-152.10400649,0.00014877,2]
[422791769,1779402640000,-25000.0,0.00014786,3]
[422791770,1779402640000,-25000.0,0.00014794,3]
[422791771,1779402640000,-500.0,0.000148,5]
[422791772,1779402640000,-25000.0,0.00014803,3]
[422791773,1779402640000,-25000.0,0.00014812,3]
[422791774,1779402640000,-25000.0,0.00014821,3]
[422791778,1779402640000,-167.319,0.00014838,2]
[422791776,1779402640000,-500.0,0.00014837,2]
[422791775,1779402640000,-25000.0,0.0001483,3]
[422791779,1779402640000,-25000.0,0.00014838,3]
[422791780,1779402640000,-25000.0,0.00014847,3]
[422791781,1779402640000,-1067.90123,0.0001485,2]
[422791783,1779402640000,-25000.0,0.00014856,3]
[422791785,1779402640000,-25000.0,0.00014865,3]
[422791786,1779402640000,-561.08,0.00014873,2]
[422791790,1779402640000,-225.67224447,0.00014877,2]
[422791787,1779402640000,-25000.0,0.00014874,3]
[422791777,1779402640000,-604.985,0.00014838,2]
[422791791,1779402640000,-153.99235667,0.00014877,2]
[422791837,1779402641000,-481.58157,0.00014993,2]
[422791838,1779402641000,-151.0,0.00014993,2]
[422791839,1779402641000,-290.77647,0.00014993,2]
[422791840,1779402641000,-290.77647,0.00014993,2]
[422791841,1779402641000,-290.77647,0.00014993,2]
[422791844,1779402641000,-353.914024,0.00014993,2]
[422791843,1779402641000,-151.0,0.00014993,2]
[422791845,1779402641000,-353.914024,0.00014993,2]
[422791850,1779402641000,-151.0,0.00014993,2]
[422791835,1779402641000,-481.58157,0.00014993,2]
[422791842,1779402641000,-290.77647,0.00014993,2]
[422791834,1779402641000,-481.58157,0.00014993,2]
[422791822,1779402641000,-222.55260524,0.0001499,2]
[422791831,1779402641000,-29415.7751936,0.00014993,2]
[422791833,1779402641000,-151.0,0.00014993,2]
[422791832,1779402641000,-151.0,0.00014993,2]
[422791829,1779402641000,-1998.8787236,0.00014993,2]
[422791830,1779402641000,-108919.4553319,0.00014993,2]
[422791827,1779402641000,-666.0,0.00014992,2]
[422791828,1779402641000,-3499.2118336,0.00014993,2]
[422791848,1779402641000,-151.0,0.00014993,2]
[422791826,1779402641000,-300.0,0.00014992,2]
[422791824,1779402641000,-24282.0689018,0.00014991,2]
[422791823,1779402641000,-222.55260524,0.0001499,2]
[422791825,1779402641000,-300.0,0.00014992,2]
[422791836,1779402641000,-481.58157,0.00014993,2]
[422791849,1779402641000,-151.0,0.00014993,2]
[422791820,1779402641000,-290.99398947,0.00014908,2]
[422791847,1779402641000,-353.914024,0.00014993,2]
[422791877,1779402641000,-4349.257,0.00015,2]
[422791876,1779402641000,-1186970.28685063,0.00015,2]
[422791875,1779402641000,-666.0,0.00014999,2]
[422791873,1779402641000,-300.0,0.00014999,2]
[422791874,1779402641000,-300.0,0.00014999,2]
[422791871,1779402641000,-500.0,0.00014999,2]
[422791870,1779402641000,-500.0,0.00014999,2]
[422791872,1779402641000,-500.0,0.00014999,2]
[422791868,1779402641000,-500.0,0.00014999,2]
[422791867,1779402641000,-408.51525931,0.00014999,2]
[422791865,1779402641000,-500.0,0.00014999,2]
[422791866,1779402641000,-563.65970565,0.00014999,2]
[422791863,1779402641000,-500.0,0.00014999,2]
[422791869,1779402641000,-500.0,0.00014999,2]
[422791862,1779402641000,-500.0,0.00014999,2]
[422791852,1779402641000,-179.963736,0.00014993,2]
[422791851,1779402641000,-179.963736,0.00014993,2]
[422791864,1779402641000,-500.0,0.00014999,2]
[422791853,1779402641000,-179.963736,0.00014993,2]
[422791855,1779402641000,-151.0,0.00014993,2]
[422791856,1779402641000,-179.963736,0.00014993,2]
[422791854,1779402641000,-151.0,0.00014993,2]
[422791860,1779402641000,-1097.29439826,0.00014999,5]
[422791858,1779402641000,-1097.29439826,0.00014999,5]
[422791861,1779402641000,-500.0,0.00014999,2]
[422791857,1779402641000,-151.0,0.00014997,2]
[422791859,1779402641000,-1097.29439826,0.00014999,5]
[422791846,1779402641000,-353.914024,0.00014993,2]
[422791910,1779402646000,-602.0,0.00014343,2]
[422791940,1779402650000,-552.77105996,0.00014343,2]
[422791946,1779402650000,-102.2000816,0.00015,2]
[422791945,1779402650000,-927.0,0.00014879,2]
[422791944,1779402650000,-341.11929151,0.000147,2]
[422791943,1779402650000,-209.3793844,0.00014529,2]
[422791942,1779402650000,-2414.94583778,0.00014529,2]
[422791941,1779402650000,-1469.55416222,0.00014343,2]
[422791966,1779403535000,-162.29,7.027e-05,2]
[422791967,1779403535000,-139.2117669,0.00012055,2]
[422791970,1779403609000,-150.0,0.00013488,2]
[422791971,1779403609000,-9.17746165,0.00013488,2]
[422791969,1779403609000,-150.0,0.00013488,2]
[422791968,1779403609000,-360.7882331,0.00012055,2]
[422791975,1779403689000,3117.343,0.00028767,120]
[422791976,1779403740000,1000.0,0.00028766,120]
[422791995,1779403832000,-500.0,0.00013699,2]
[422792001,1779403832000,-71492.36955812,0.000137,2]
[422792003,1779403832000,-86720.72044409,0.000137,2]
[422792005,1779403832000,-615.9508,0.000137,2]
[422792012,1779403832000,-1228.4,0.00013798,2]
[422792009,1779403832000,-605.53,0.00013753,2]
[422792011,1779403832000,-3784.7173748,0.00013792,2]
[422791996,1779403832000,-3067.0432,0.000137,2]
[422792013,1779403832000,-4645.8456,0.000138,2]
[422792015,1779403832000,-2500.0,0.000138,2]
[422792017,1779403832000,-166.85,0.00013819,2]
[422792007,1779403832000,-5683.6804,0.000137,2]
[422791993,1779403832000,-500.0,0.00013699,2]
[422791991,1779403832000,-482.37729591,0.00013699,2]
[422791988,1779403832000,-500.0,0.00013699,2]
[422791987,1779403832000,-1200.0,0.00013698,2]
[422791989,1779403832000,-500.0,0.00013699,2]
[422791986,1779403832000,-300.0,0.00013698,2]
[422791984,1779403832000,-3784.7173748,0.00013653,2]
[422791985,1779403832000,-189.13,0.00013693,2]
[422791982,1779403832000,-1499.15,0.00013602,2]
[422791983,1779403832000,-3878.52,0.00013628,2]
[422791980,1779403832000,-150.0,0.00013488,2]
[422791981,1779403832000,-189.21530246,0.00013528,2]
[422791978,1779403832000,-140.82253835,0.00013488,2]
[422791979,1779403832000,-150.0,0.00013488,2]
[422792019,1779403832000,-150.0,0.00013862,2]
[422791998,1779403832000,-636899.58649779,0.000137,2]
[422792035,1779403832000,-500.0,0.000141,5]
[422792059,1779403832000,-150.0,0.00014612,2]
[422792023,1779403832000,-3784.7173748,0.0001393,2]
[422792083,1779403832000,-125.71205001,0.00014882,3]
[422792084,1779403832000,-10938.51763361,0.00014891,3]
[422792079,1779403832000,-301.0,0.00014862,2]
[422792077,1779403832000,-154.32099,0.0001486,2]
[422792082,1779403832000,-24874.28794999,0.00014882,3]
[422792081,1779403832000,-200.0,0.0001488,2]
[422792075,1779403832000,-154.32099,0.0001485,2]
[422792034,1779403832000,-3784.7173748,0.00014069,2]
[422792071,1779403832000,-483.988,0.00014821,2]
[422792066,1779403832000,-200.0,0.000147,5]
[422792064,1779403832000,-227.41286101,0.000147,2]
[422792068,1779403832000,-200.0,0.000148,5]
[422792053,1779403832000,-200.0,0.000145,5]
[422792055,1779403832000,-200.0,0.000146,5]
[422792073,1779403832000,-154.32098,0.0001485,2]
[422792021,1779403832000,-1321.5,0.00013884,2]
[422792051,1779403832000,-1400.0,0.000144,5]
[422792030,1779403832000,-250.0,0.00014,2]
[422792027,1779403832000,-215.23956962,0.00013955,2]
[422792031,1779403832000,-200.0,0.00014,5]
[422792038,1779403832000,-800.0,0.000142,5]
[422792040,1779403832000,-3784.7173748,0.00014207,2]
[422792026,1779403832000,-1499.15,0.00013942,2]
[422792044,1779403832000,-1499.15,0.00014282,2]
[422792046,1779403832000,-1100.0,0.000143,5]
[422792048,1779403832000,-3784.7173748,0.00014346,2]
[422792057,1779403832000,-150.0,0.00014612,2]
[422792042,1779403832000,-150.0,0.00014237,2]
[422792062,1779403832000,-1499.15,0.00014622,2]
[422792100,1779403838000,-1071.0,0.00014484,2]
[422792101,1779403838000,-281.6393173,0.00014484,2]
[422792109,1779403840000,-143.73275536,0.00014891,3]
[422792108,1779403840000,-151.60857401,0.000147,2]
[422792106,1779403840000,-408.24901828,0.00014484,2]
[422792107,1779403840000,-2023.82903922,0.00014484,2]
[422792111,1779403841000,-1690.5913692,0.00014891,3]
[422792110,1779403841000,-791.1615828,0.00014891,3]
[422792133,1779403843000,-126.68282152,0.000147,2]
[422792132,1779403843000,-3751.21717848,0.00014623,2]
[422792131,1779403843000,-33.50019632,0.00014623,2]
[422792134,1779403844000,-74.44063275,0.00014891,3]
[422792150,1779403846000,-3634.13340004,0.00014891,3]
[422792149,1779403846000,-176.5343265,0.000147,2]
[422792151,1779403846000,-523.97358786,0.00014891,3]
[422792153,1779403846000,-6557.68934922,0.00014891,3]
[422792154,1779403846000,-17952.04536097,0.000149,3]
[422792156,1779403846000,-3493.81317504,0.00014761,2]
[422792155,1779403846000,-10505.76528981,0.000149,3]
[422792152,1779403846000,-645.75968916,0.00014891,3]
[422792159,1779403847000,-4928.6241386,0.000149,3]
[422792157,1779403847000,-290.90419976,0.00014761,2]
[422792158,1779403847000,-328.66650024,0.000149,3]
[422792168,1779404941000,1000.0,0.00028765,120]
[422792170,1779404966000,-183.53389197,0.00012543,2]
[422792169,1779404966000,-151.0,0.000124,2]
[422792185,1779405031000,-150.0,0.00012808,2]
[422792190,1779405031000,-1612.76,0.00013109,2]
[422792189,1779405031000,-1200.0,0.00013108,2]
[422792191,1779405031000,-300.0,0.00013399,2]
[422792194,1779405031000,-1612.76,0.00013429,2]
[422792198,1779405031000,-150.0,0.00013488,2]
[422792192,1779405031000,-300.0,0.00013399,2]
[422792196,1779405031000,-257.20275532,0.00013488,2]
[422792188,1779405031000,-169.26,0.00012939,2]
[422792199,1779405031000,-150.64066077,0.00013488,2]
[422792193,1779405031000,-240.0,0.00013399,2]
[422792187,1779405031000,-182.82,0.00012928,2]
[422792180,1779405031000,-328.77637998,0.00012725,2]
[422792183,1779405031000,-164.28010395,0.00012781,2]
[422792184,1779405031000,-1612.76,0.00012789,2]
[422792182,1779405031000,-193.0,0.00012746,2]
[422792195,1779405031000,-178.11723745,0.00013488,2]
[422792181,1779405031000,-339.37035117,0.00012725,2]
[422792179,1779405031000,-150.0,0.00012703,2]
[422792178,1779405031000,-353.78347269,0.00012596,2]
[422792176,1779405031000,-949.6765271,0.00012596,2]
[422792175,1779405031000,-166.87,0.00012574,2]
[422792173,1779405031000,-847.25253921,0.00012543,2]
[422792174,1779405031000,-266.66356882,0.00012543,2]
[422792186,1779405031000,-160.0,0.00012905,2]
[422792197,1779405031000,-216.21635277,0.00013488,2]
[422792177,1779405031000,-267.00000021,0.00012596,2]
[422792201,1779405031000,-150.0,0.00013488,2]
[422792200,1779405031000,-226.92243394,0.00013488,2]
[422792224,1779405031000,-500.0,0.00013699,2]
[422792225,1779405031000,-500.0,0.00013699,2]
[422792223,1779405031000,-500.0,0.00013699,2]
[422792222,1779405031000,-500.0,0.00013699,2]
[422792221,1779405031000,-500.0,0.00013699,2]
[422792220,1779405031000,-500.0,0.00013699,2]
[422792219,1779405031000,-1638.4186133,0.00013699,5]
[422792218,1779405031000,-500.0,0.00013699,2]
[422792217,1779405031000,-250.0,0.00013699,2]
[422792216,1779405031000,-500.0,0.00013699,2]
[422792214,1779405031000,-200.0,0.00013699,2]
[422792226,1779405031000,-500.0,0.00013699,2]
[422792212,1779405031000,-151.0,0.00013697,2]
[422792203,1779405031000,-165.05,0.00013563,2]
[422792202,1779405031000,-150.0,0.00013488,2]
[422792207,1779405031000,-20579.86571329,0.000136,2]
[422792215,1779405031000,-168.01,0.00013699,2]
[422792204,1779405031000,-502.425,0.00013599,2]
[422792205,1779405031000,-150.0,0.00013599,2]
[422792209,1779405031000,-1540.15,0.00013667,2]
[422792208,1779405031000,-7346.3080718,0.000136,2]
[422792213,1779405031000,-151.0,0.00013697,2]
[422792210,1779405031000,-151.0,0.00013697,2]
[422792211,1779405031000,-151.0,0.00013697,2]
[422792206,1779405031000,-15218.58294956,0.000136,2]
[422792261,1779405032000,-500.0,0.00013699,2]
[422792262,1779405032000,-500.0,0.00013699,2]
[422792263,1779405032000,-500.0,0.00013699,2]
[422792259,1779405032000,-500.0,0.00013699,2]
[422792255,1779405032000,-500.0,0.00013699,2]
[422792258,1779405032000,-500.0,0.00013699,2]
[422792257,1779405032000,-500.0,0.00013699,2]
[422792256,1779405032000,-500.0,0.00013699,2]
[422792254,1779405032000,-500.0,0.00013699,2]
[422792260,1779405032000,-500.0,0.00013699,2]
[422792267,1779405032000,-500.0,0.00013699,2]
[422792270,1779405032000,-500.0,0.00013699,2]
[422792266,1779405032000,-500.0,0.00013699,2]
[422792264,1779405032000,-500.0,0.00013699,2]
[422792268,1779405032000,-500.0,0.00013699,2]
[422792269,1779405032000,-500.0,0.00013699,2]
[422792271,1779405032000,-500.0,0.00013699,2]
[422792272,1779405032000,-500.0,0.00013699,2]
[422792273,1779405032000,-500.0,0.00013699,2]
[422792274,1779405032000,-500.0,0.00013699,2]
[422792275,1779405032000,-500.0,0.00013699,2]
[422792277,1779405032000,-175.71829794,0.00013699,2]
[422792253,1779405032000,-500.0,0.00013699,2]
[422792265,1779405032000,-500.0,0.00013699,2]
[422792252,1779405032000,-500.0,0.00013699,2]
[422792239,1779405032000,-500.0,0.00013699,2]
[422792250,1779405032000,-500.0,0.00013699,2]
[422792227,1779405032000,-500.0,0.00013699,2]
[422792228,1779405032000,-500.0,0.00013699,2]
[422792229,1779405032000,-500.0,0.00013699,2]
[422792230,1779405032000,-500.0,0.00013699,2]
[422792232,1779405032000,-500.0,0.00013699,2]
[422792231,1779405032000,-500.0,0.00013699,2]
[422792233,1779405032000,-500.0,0.00013699,2]
[422792234,1779405032000,-500.0,0.00013699,2]
[422792235,1779405032000,-500.0,0.00013699,2]
[422792236,1779405032000,-500.0,0.00013699,2]
[422792237,1779405032000,-500.0,0.00013699,2]
[422792238,1779405032000,-500.0,0.00013699,2]
[422792240,1779405032000,-500.0,0.00013699,2]
[422792241,1779405032000,-500.0,0.00013699,2]
[422792242,1779405032000,-500.0,0.00013699,2]
[422792243,1779405032000,-500.0,0.00013699,2]
[422792244,1779405032000,-500.0,0.00013699,2]
[422792245,1779405032000,-500.0,0.00013699,2]
[422792276,1779405032000,-613.75413033,0.00013699,2]
[422792246,1779405032000,-500.0,0.00013699,2]
[422792247,1779405032000,-500.0,0.00013699,2]
[422792248,1779405032000,-500.0,0.00013699,2]
[422792249,1779405032000,-336.56224231,0.00013699,2]
[422792251,1779405032000,-500.0,0.00013699,2]
[422792278,1779405032000,-500.0,0.00013699,2]
[422792314,1779405032000,-150.0,0.000137,2]
[422792281,1779405032000,-540.28541192,0.00013699,2]
[422792306,1779405032000,-500.0,0.00013699,2]
[422792310,1779405032000,-14151.352,0.000137,2]
[422792311,1779405032000,-2487.0393,0.000137,2]
[422792313,1779405032000,-1100.0,0.000137,5]
[422792317,1779405032000,-72258.12607544,0.000137,2]
[422792316,1779405032000,-202339.65902386,0.000137,2]
[422792312,1779405032000,-99151.7967,0.000137,2]
[422792321,1779405032000,-183.06018215,0.00013729,21]
[422792322,1779405032000,-183.06018215,0.00013731,21]
[422792319,1779405032000,-150.0,0.00013704,5]
[422792320,1779405032000,-162.71814,0.00013704,5]
[422792318,1779405032000,-24452.98426878,0.000137,2]
[422792324,1779405032000,-20579.86571328,0.00013744,2]
[422792326,1779405032000,-6306.8294314,0.00013777,2]
[422792323,1779405032000,-15218.58294949,0.00013744,2]
[422792325,1779405032000,-1612.76,0.00013749,2]
[422792327,1779405032000,-5206.1475789,0.00013777,2]
[422792328,1779405032000,-996.3960505,0.00013777,2]
[422792331,1779405032000,-2036.66069556,0.00013786,2]
[422792329,1779405032000,-151.1694335,0.00013777,2]
[422792332,1779405032000,-1254.41808677,0.00013786,2]
[422792330,1779405032000,-3795.4509923,0.00013777,2]
[422792279,1779405032000,-177.17000459,0.00013699,2]
[422792308,1779405032000,-500.0,0.00013699,2]
[422792309,1779405032000,-500.0,0.00013699,2]
[422792315,1779405032000,-615042.21213192,0.000137,2]
[422792301,1779405032000,-500.0,0.00013699,2]
[422792280,1779405032000,-500.0,0.00013699,2]
[422792285,1779405032000,-500.0,0.00013699,2]
[422792307,1779405032000,-500.0,0.00013699,2]
[422792286,1779405032000,-519.31394267,0.00013699,2]
[422792283,1779405032000,-500.0,0.00013699,2]
[422792284,1779405032000,-527.55270899,0.00013699,2]
[422792287,1779405032000,-500.0,0.00013699,2]
[422792289,1779405032000,-500.0,0.00013699,2]
[422792290,1779405032000,-502.35693188,0.00013699,2]
[422792288,1779405032000,-500.0,0.00013699,2]
[422792293,1779405032000,-500.0,0.00013699,2]
[422792291,1779405032000,-500.0,0.00013699,2]
[422792282,1779405032000,-459.9436942,0.00013699,2]
[422792295,1779405032000,-500.0,0.00013699,2]
[422792300,1779405032000,-500.0,0.00013699,2]
[422792292,1779405032000,-500.0,0.00013699,2]
[422792304,1779405032000,-500.0,0.00013699,2]
[422792302,1779405032000,-150.0,0.00013699,2]
[422792303,1779405032000,-500.0,0.00013699,2]
[422792305,1779405032000,-500.0,0.00013699,2]
[422792298,1779405032000,-500.0,0.00013699,2]
[422792294,1779405032000,-181.36181722,0.00013699,2]
[422792296,1779405032000,-501.82827039,0.00013699,2]
[422792297,1779405032000,-500.0,0.00013699,2]
[422792299,1779405032000,-646.77472674,0.00013699,2]
[422792348,1779405037000,-500.0,0.00013973,2]
[422792345,1779405037000,-500.0,0.00013973,2]
[422792351,1779405037000,-4725.61070627,0.0001399,2]
[422792353,1779405037000,-20579.86571328,0.00014033,2]
[422792352,1779405037000,-15218.58294949,0.00014033,2]
[422792349,1779405037000,-250.0,0.00013973,2]
[422792344,1779405037000,-7346.30807179,0.00013971,2]
[422792346,1779405037000,-919.53701192,0.00013973,2]
[422792342,1779405037000,-3500.0,0.000139,5]